bitfinex/quotes_SOLUSD_20250722
["timestamp","ask_amount","ask_price","bid_price","bid_amount"]
[1753211370559,8.19588402,202.3,202.24,16.78468397]
[1753211370946,0.66,202.33,202.24,16.78468397]
[1753211370947,8.19588402,202.32,202.26,16.78468397]
[1753211371154,8.19588402,202.31,202.26,16.78468397]
[1753211371331,8.19588402,202.3,202.25,0.5718065]
[1753211371538,8.19588402,202.29,202.25,0.5718065]
[1753211371847,8.85588402,202.29,202.25,0.5718065]
[1753211372043,8.19588402,202.28,202.25,0.5718065]
[1753211372555,8.19588402,202.29,202.25,0.5718065]
[1753211373148,43.30126474,202.3,202.25,0.5718065]
[1753211373465,30.94315969,202.3,202.25,1.2818065]
[1753211373942,31.60315969,202.3,202.25,1.2818065]
[1753211374341,26.66,202.3,202.25,9.47769052]
[1753211374557,21.68,202.33,202.25,9.47769052]
[1753211374558,13.13856627,202.32,202.26,25.69056799]
[1753211375068,8.85588402,202.31,202.25,8.76769052]
[1753211375365,8.85588402,202.31,202.25,0.5718065]
[1753211376345,0.66,202.31,202.25,8.76769052]
[1753211376757,13.1388829,202.31,202.25,0.5718065]
[1753211377850,4.94299888,202.31,202.26,8.19588402]
[1753211378179,4.94299888,202.31,202.25,0.5718065]
[1753211378180,8.19588402,202.35,202.29,8.19588402]
[1753211378338,13.13783807,202.35,202.29,8.19588402]
[1753211379137,4.94195405,202.35,202.3,24.98056799]
[1753211379366,4.94195405,202.35,202.3,0.71]
[1753211379367,13.13783807,202.35,202.3,0.71]
[1753211379547,13.13783807,202.35,202.26,4.94397095]
[1753211379548,8.19588402,202.31,202.26,0.71]
[1753211380133,8.19588402,202.32,202.26,24.98056799]
[1753211380339,13.1381067,202.34,202.28,8.19588402]
[1753211380556,8.19588402,202.33,202.27,0.71]
[1753211380758,8.19588402,202.32,202.27,0.71]
[1753211380979,8.19588402,202.3,202.25,0.5718065]
[1753211381143,26.0,202.33,202.25,0.5718065]
[1753211381144,8.19588402,202.28,202.25,0.5718065]
[1753211381341,0.66,202.29,202.25,0.5718065]
[1753211381342,8.19588402,202.26,202.25,0.5718065]
[1753211381975,8.85588402,202.26,202.25,0.5718065]
[1753211382339,13.80001533,202.26,202.25,0.5718065]
[1753211385373,13.9421769,202.26,202.25,1e-08]
[1753211385576,0.14216157,202.22,202.2,1e-08]
[1753211385861,26.0,202.23,202.17,0.03]
[1753211385862,26.14216157,202.18,202.17,0.03]
[1753211386170,26.14216157,202.18,202.12,0.03]
[1753211386171,0.14216157,202.17,202.12,0.03]
[1753211386348,13.14319515,202.13,202.12,0.03]
[1753211387551,14.00535672,202.13,202.12,1e-08]
[1753211387958,26.0,202.1,202.04,0.1]
[1753211388161,8.19588402,202.05,202.04,0.1]
[1753211388369,13.145154,202.05,202.04,0.1]
[1753211388894,13.865154,202.05,202.04,0.1]
[1753211392198,14.00731557,202.05,202.04,0.1]
[1753211392489,34.19588402,202.03,202.02,0.1]
[1753211392687,47.68,202.03,202.02,0.1]
[1753211393056,56.59588402,202.03,202.02,0.1]
[1753211393778,61.54564395,202.03,202.02,0.1]
[1753211395601,61.68780552,202.03,202.02,0.1]
[1753211397192,60.82564395,202.03,202.02,0.1]
[1753211397392,61.54564395,202.03,202.02,0.1]
[1753211397591,0.14216157,202.02,201.98,0.03]
[1753211397906,8.33804559,201.99,201.98,0.03]
[1753211398115,21.68,201.99,201.98,0.03]
[1753211398409,21.68,201.99,201.97,0.03]
[1753211398410,30.73804559,201.99,201.97,0.03]
[1753211398601,9.05804559,201.98,201.97,0.03]
[1753211399183,13.86686926,201.98,201.97,0.03]
[1753211400082,14.00903083,201.98,201.97,1e-08]
[1753211400317,4.95024998,202.01,201.97,1e-08]
[1753211400612,21.66,202.03,201.97,0.68000001]
[1753211400929,4.94926998,202.05,201.97,0.68000001]
[1753211401093,13.14472042,202.07,202.01,8.19588402]
[1753211401421,8.19588402,202.08,202.02,25.66056799]
[1753211401582,4.94804552,202.1,202.03,25.66056799]
[1753211401782,8.19588402,202.04,201.99,0.68]
[1753211402295,21.66,202.05,201.98,6.032]
[1753211402504,8.19588402,202.01,201.99,0.68]
[1753211402810,8.19588402,202.01,201.97,1e-08]
[1753211403056,8.19588402,202.0,201.97,1e-08]
[1753211403246,13.14656421,202.0,201.97,1e-08]
[1753211403567,4.95068019,202.0,201.97,1e-08]
[1753211403766,4.95068019,202.0,201.97,0.68000001]
[1753211404049,13.14656421,202.0,201.97,1e-08]
[1753211404254,8.19588402,201.99,201.97,1e-08]
[1753211404952,13.14656421,202.0,201.97,0.68000001]
[1753211405150,4.94975993,202.03,201.97,0.68000001]
[1753211405328,8.19588402,202.0,201.97,0.68000001]
[1753211405928,4.94975993,202.03,201.97,0.68000001]
[1753211406230,34.80564395,202.03,201.97,8.87588403]
[1753211406448,8.19588402,202.02,201.97,0.68000001]
[1753211406654,34.80564395,202.03,201.97,24.980568]
[1753211406835,34.80564395,202.03,201.98,0.68]
[1753211407160,26.60975993,202.03,201.99,0.68]
[1753211407459,8.19588402,202.02,201.99,0.68]
[1753211407831,34.80564395,202.03,201.99,0.68]
[1753211408448,13.14564395,202.03,201.99,0.68]
[1753211409958,13.14564395,202.03,202.0,26.0]
[1753211410546,4.9475559,202.12,202.05,26.0]
[1753211410874,21.66,202.11,202.09,26.0]
[1753211411076,21.66,202.11,202.1,26.0]
[1753211411244,8.19588402,202.13,202.1,26.0]
[1753211411450,34.80272872,202.15,202.11,26.0]
[1753211411866,26.6068447,202.15,202.1,0.68]
[1753211412154,8.19588402,202.14,202.1,0.68]
[1753211412571,26.6068447,202.15,202.01,13.99225448]
[1753211412572,8.19588402,202.11,202.01,1.6171]
[1753211412753,8.19588402,202.09,202.05,26.0]
[1753211412952,8.19588402,202.09,202.05,26.68]
[1753211414046,8.19588402,202.09,202.05,0.68]
[1753211414047,13.14418891,202.09,202.05,0.68]
[1753211414246,13.14418891,202.09,202.01,0.68]
[1753211414247,8.19588402,202.07,202.01,0.68]
[1753211414477,8.19588402,202.06,202.01,0.68]
[1753211414677,8.19588402,202.06,202.02,0.68]
[1753211415379,13.14498313,202.06,202.02,0.68]
[1753211415561,8.19588402,202.06,202.02,0.68]
[1753211415772,13.14470151,202.07,202.03,0.68]
[1753211416077,4.94881749,202.07,202.03,8.87588402]
[1753211416455,4.94881749,202.07,202.04,8.19588402]
[1753211416870,4.94829036,202.09,202.04,8.87588402]
[1753211417889,0.86216157,202.14,202.07,8.19588402]
[1753211418061,0.86216157,202.14,202.08,8.19588402]
[1753211418062,21.64,202.13,202.08,8.19588402]
[1753211418264,22.36,202.13,202.08,8.19588402]
[1753211418457,0.72,202.12,202.08,8.19588402]
[1753211419376,0.72,202.12,202.07,8.19588402]
[1753211420175,4.9478007,202.11,202.07,8.19588402]
[1753211420370,4.94760395,202.12,202.07,8.19588402]
[1753211420559,26.58735336,202.13,202.08,8.86588402]
[1753211421483,26.0,202.11,202.1,8.19588402]
[1753211421861,26.0,202.11,202.1,0.67]
[1753211422275,21.64,202.13,202.1,8.86588402]
[1753211422482,21.64,202.13,202.11,8.19588402]
[1753211423090,21.64,202.13,202.11,8.86588402]
[1753211423768,21.64,202.13,202.11,8.19588402]
[1753211424087,26.58733798,202.13,202.1,8.19588402]
[1753211424293,21.64,202.13,202.1,8.86588402]
[1753211424793,21.64,202.13,202.11,8.19588402]
[1753211425191,21.64,202.13,202.11,8.86588402]
[1753211426702,21.64,202.13,202.11,8.19588402]
[1753211426876,26.58734542,202.13,202.11,8.19588402]
[1753211427076,21.64,202.13,202.11,8.19588402]
[1753211427604,21.64,202.13,202.11,8.86588402]
[1753211427905,21.64,202.13,202.1,8.19588402]
[1753211428082,21.64,202.13,202.1,8.86588402]
[1753211428289,21.64,202.13,202.1,8.19588402]
[1753211428498,21.64,202.13,202.11,0.67]
[1753211429097,0.06,202.16,202.12,8.19588402]
[1753211429314,0.06,202.16,202.15,8.19588402]
[1753211429604,0.06,202.16,202.14,8.19588402]
[1753211429977,0.06,202.16,202.14,8.86588402]
[1753211430390,26.06,202.16,202.09,0.67]
[1753211430589,26.06,202.16,202.12,8.19588402]
[1753211430793,26.06,202.16,202.12,8.86588402]
[1753211431477,34.97588402,202.16,202.1,8.19588402]
[1753211431674,4.94682166,202.15,202.1,8.19588402]
[1753211431872,4.94682166,202.15,202.1,8.86588402]
[1753211432091,4.94682166,202.15,202.11,8.86588402]
[1753211432710,4.94682166,202.15,202.11,0.67]
[1753211433007,26.54682166,202.15,202.11,0.67]
[1753211433220,26.54682166,202.15,202.1,8.19588402]
[1753211433733,26.54682166,202.15,202.1,8.86588402]
[1753211434228,26.0,202.12,202.07,0.67]
[1753211434399,26.0,202.12,202.07,8.86588402]
[1753211435010,26.0,202.12,202.04,0.67]
[1753211435011,0.72,202.11,202.04,0.67]
[1753211435215,0.72,202.11,202.05,8.19588402]
[1753211435216,22.32,202.11,202.05,8.19588402]
[1753211435808,4.94804552,202.1,202.04,0.67]
[1753211436031,0.06,202.16,202.07,16.78468397]
[1753211436230,0.06,202.16,202.14,8.19588402]
[1753211436525,0.06,202.16,202.15,0.67]
[1753211436911,0.06,202.16,202.15,8.86588402]
[1753211439637,0.06,202.16,202.15,30.59738965]
[1753211440006,0.06,202.17,202.16,46.56684554]
[1753211440233,0.06,202.17,202.16,55.92738725]
[1753211440635,0.06,202.17,202.16,25.65056799]
[1753211441155,0.06,202.17,202.15,8.19588402]
[1753211441318,0.06,202.17,202.15,8.86588402]
[1753211441519,0.06,202.17,202.16,8.19588402]
[1753211441740,0.06,202.17,202.16,8.86588402]
[1753211443445,0.06,202.17,202.15,34.19588402]
[1753211443949,0.06,202.17,202.15,8.19588402]
[1753211444322,0.06,202.17,202.14,0.67]
[1753211444323,0.06,202.17,202.14,8.86588402]
[1753211444629,8.91588402,202.16,202.1,8.19588402]
[1753211444831,8.91588402,202.16,202.09,31.02496799]
[1753211445048,8.19588402,202.13,202.04,18.81533749]
[1753211445256,8.19588402,202.13,202.05,8.86588402]
[1753211445257,8.19588402,202.11,202.05,8.86588402]
[1753211445444,8.19588402,202.11,202.05,16.78468397]
[1753211445651,8.19588402,202.11,202.04,14.80268402]
[1753211445652,8.91588402,202.1,202.04,8.19588402]
[1753211445943,8.91588402,202.1,202.01,8.86588402]
[1753211445944,8.19588402,202.08,202.01,8.86588402]
[1753211446244,8.19588402,202.06,202.0,8.19588402]
[1753211446448,8.19588402,202.05,201.98,30.44588402]
[1753211446621,8.19588402,202.05,201.98,8.86588402]
[1753211447252,8.19588402,202.04,201.98,0.67]
[1753211449852,8.19588402,202.02,201.97,16.78468398]
[1753211450044,8.19588402,202.02,201.97,1e-08]
[1753211450229,8.91588402,202.02,201.97,1e-08]
[1753211451135,26.0,202.01,201.99,8.19588402]
[1753211451451,26.0,202.01,201.97,1e-08]
[1753211451925,4.95049504,202.0,201.97,1e-08]
[1753211453227,30.95027489,202.01,201.97,0.72000001]
[1753211453839,30.95027489,202.01,201.97,1e-08]
[1753211454355,26.0,202.02,201.97,8.19588403]
[1753211454856,34.19588402,202.02,201.97,0.72000001]
[1753211455227,26.0,202.02,201.98,8.91588402]
[1753211455423,26.0,202.01,201.98,0.72]
[1753211456358,30.95030211,202.01,201.98,0.72]
[1753211456763,4.95002475,202.02,201.98,0.72]
[1753211457070,30.95002475,202.02,201.98,0.72]
[1753211458875,30.95002475,202.02,201.97,8.19588403]
[1753211458876,31.67002475,202.02,201.97,8.19588403]
[1753211459578,0.72,202.08,202.01,8.19588402]
[1753211459782,0.72,202.08,201.98,17.50468397]
[1753211459783,21.56,202.09,202.06,8.19588402]
[1753211459942,8.19588402,202.07,202.01,8.19588402]
[1753211460142,34.91588402,202.08,202.01,8.19588402]
[1753211460771,26.0,202.04,202.01,8.19588402]
[1753211461147,26.72,202.04,201.99,8.19588402]
[1753211461457,26.0,202.03,201.99,0.72]
[1753211462167,26.0,202.03,201.99,8.91588402]
[1753211462557,0.72,202.02,201.97,24.980568]
[1753211462868,39.14637906,202.0,201.97,1e-08]
[1753211463082,30.95049504,202.0,201.97,1e-08]
[1753211463466,31.67049504,202.0,201.97,1e-08]
[1753211463672,53.23049504,202.0,201.97,1e-08]
[1753211464278,0.72,201.99,201.97,1e-08]
[1753211464682,8.91588402,201.99,201.97,1e-08]
[1753211465394,4.95098524,201.98,201.97,1e-08]
[1753211466288,5.67098524,201.98,201.97,1e-08]
[1753211466474,13.86686926,201.98,201.97,1e-08]
[1753211467110,26.0,201.96,201.95,0.1]
[1753211467265,60.84952112,201.96,201.95,0.1]
[1753211467666,53.3736371,201.96,201.95,0.1]
[1753211467997,61.56952112,201.96,201.95,0.1]
[1753211471089,61.56952112,201.96,201.94,0.03]
[1753211471289,6.01189872,201.95,201.94,1e-08]
[1753211471507,26.0,201.93,201.92,1e-08]
[1753211471725,52.85189872,201.93,201.92,1e-08]
[1753211472100,0.14216157,201.92,201.91,1e-08]
[1753211472299,6.01189872,201.92,201.91,1e-08]
[1753211472815,6.01189872,201.92,201.9,0.03]
[1753211472816,10.96435513,201.92,201.9,1e-08]
[1753211472999,10.96435513,201.92,201.81,0.1]
[1753211473000,26.0,201.88,201.81,0.1]
[1753211473202,5.14973715,201.83,201.81,0.1]
[1753211473400,21.56,201.82,201.81,0.1]
[1753211474190,27.42973715,201.82,201.81,0.1]
[1753211474819,32.38464746,201.82,201.81,1e-08]
[1753211475037,32.52680903,201.82,201.81,1e-08]
[1753211475232,35.6299742,201.82,201.81,1e-08]
[1753211475593,31.41068792,201.82,201.81,1e-08]
[1753211475800,39.66359024,201.82,201.81,1e-08]
[1753211476299,39.52142867,201.82,201.81,1e-08]
[1753211476537,26.51491031,201.82,201.81,1e-08]
[1753211476712,21.56,201.82,201.81,0.72000001]
[1753211476900,8.25290232,201.88,201.81,8.97290233]
[1753211477099,0.72,201.91,201.83,8.25290232]
[1753211477100,26.0,201.86,201.83,8.25290232]
[1753211477406,21.56,201.87,201.81,1e-08]
[1753211477407,29.81290232,201.87,201.81,1e-08]
[1753211477606,8.25290232,201.82,201.81,1e-08]
[1753211477797,47.56,201.82,201.81,1e-08]
[1753211478000,56.53290232,201.82,201.81,1e-08]
[1753211478535,30.53290232,201.82,201.81,1e-08]
[1753211478701,35.6299742,201.82,201.81,1e-08]
[1753211480935,34.9099742,201.82,201.81,1e-08]
[1753211481138,2.47025996,201.89,201.81,1e-08]
[1753211481139,0.72,201.84,201.81,1e-08]
[1753211481432,17.33789071,201.87,201.81,8.94290233]
[1753211481644,26.0,201.85,201.82,8.25290232]
[1753211481955,26.0,201.83,201.81,0.69000001]
[1753211482135,8.25290232,201.82,201.81,1e-08]
[1753211482308,8.97290232,201.82,201.81,1e-08]
[1753211483111,13.92781263,201.82,201.81,1e-08]
[1753211486960,30.95491031,201.82,201.81,1e-08]
[1753211487140,4.9547062,201.83,201.81,0.69000001]
[1753211487338,21.56,201.82,201.81,1e-08]
[1753211487851,8.31290232,201.88,201.81,25.7275863]
[1753211488036,21.56,201.87,201.83,8.25290232]
[1753211488235,47.56,201.87,201.83,8.25290232]
[1753211488436,26.0,201.85,201.84,0.69]
[1753211488632,26.0,201.85,201.81,16.78468398]
[1753211488937,8.25290232,201.86,201.82,0.69]
[1753211489264,4.95417389,201.85,201.82,0.69]
[1753211489481,0.06,201.88,201.83,0.69]
[1753211489641,0.06,201.88,201.86,8.25290232]
[1753211489835,0.06,201.88,201.84,16.78468397]
[1753211489836,0.06,201.88,201.87,0.69]
[1753211490058,8.31290232,201.88,201.85,0.69]
[1753211490257,8.31290232,201.88,201.86,8.94290232]
[1753211490258,0.06,201.88,201.86,8.94290232]
[1753211490561,26.06,201.88,201.87,0.69]
[1753211490982,0.06,201.88,201.87,0.69]
[1753211491141,26.06,201.88,201.87,0.69]
[1753211491341,0.06,201.88,201.87,0.69]
[1753211492253,0.06,201.88,201.87,25.72758629]
[1753211492471,0.06,201.88,201.87,30.68126935]
[1753211493176,0.06,201.88,201.87,25.72758629]
[1753211493758,0.06,201.88,201.86,16.78468397]
[1753211495077,0.06,201.88,201.86,0.69]
[1753211495277,0.06,201.88,201.87,8.94290232]
[1753211496090,0.06,201.88,201.87,25.72758629]
[1753211496264,0.06,201.88,201.87,30.82343092]
[1753211496463,0.06,201.91,201.88,16.78468397]
[1753211496682,0.06,201.91,201.9,8.25290232]
[1753211497187,0.06,201.91,201.9,16.78468397]
[1753211497570,0.06,201.91,201.9,25.72758629]
[1753211498473,0.06,201.91,201.9,16.78468397]
[1753211499196,0.06,201.91,201.88,17.47468397]
[1753211499392,0.06,201.91,201.89,0.69]
[1753211502103,26.0,201.89,201.84,8.94290232]
[1753211502327,26.0,201.89,201.85,8.94290232]
[1753211502815,21.52,201.88,201.85,8.94290232]
[1753211503000,21.52,201.88,201.85,0.69]
[1753211503924,21.52,201.88,201.86,0.69]
[1753211504104,21.52,201.88,201.87,0.69]
[1753211505225,26.47343768,201.88,201.83,25.72758629]
[1753211505398,26.47343768,201.88,201.81,1e-08]
[1753211505399,34.25290232,201.85,201.81,1e-08]
[1753211505588,26.0,201.82,201.81,1e-08]
[1753211505924,30.95491031,201.82,201.81,1e-08]
[1753211506292,4.95414742,201.86,201.81,0.69000001]
[1753211506500,12.38173705,201.92,201.83,8.25290232]
[1753211506501,21.52,201.85,201.83,8.25290232]
[1753211506817,21.52,201.85,201.82,8.94290232]
[1753211507415,21.52,201.85,201.81,16.78468398]
[1753211507590,21.52,201.85,201.82,8.95290232]
[1753211507791,26.47422425,201.85,201.82,0.7]
[1753211508913,26.47422425,201.85,201.82,8.95290232]
[1753211509091,26.47426428,201.85,201.82,8.95290232]
[1753211509290,26.47426428,201.85,201.82,0.7]
[1753211509723,35.4171666,201.85,201.81,1e-08]
[1753211510230,26.0,201.82,201.81,1e-08]
[1753211510594,47.52,201.82,201.81,0.70000001]
[1753211510927,21.52,201.82,201.81,8.95290233]
[1753211512830,30.952947,201.9,201.81,8.95290233]
[1753211513129,26.0,201.86,201.83,8.25290232]
[1753211513422,21.52,201.85,201.82,8.25290232]
[1753211513635,21.52,201.85,201.82,25.73758629]
[1753211513993,21.52,201.85,201.82,0.7]
[1753211514235,21.52,201.85,201.81,8.25290233]
[1753211514236,8.25290232,201.83,201.81,1e-08]
[1753211514398,8.94290232,201.84,201.81,1e-08]
[1753211514598,4.952947,201.9,201.84,16.78468397]
[1753211514823,4.95343768,201.88,201.86,8.25290232]
[1753211515026,8.25290232,201.87,201.82,0.7]
[1753211515394,8.94290232,201.87,201.82,0.7]
[1753211515863,0.69,201.87,201.82,0.7]
[1753211517174,4.95392846,201.86,201.81,8.25290233]
[1753211517470,21.52,201.85,201.81,8.95290233]
[1753211517673,30.46290232,201.85,201.81,1e-08]
[1753211517840,22.21,201.85,201.81,1e-08]
[1753211518042,30.46290232,201.85,201.81,1e-08]
[1753211518245,26.0,201.82,201.81,1e-08]
[1753211518761,34.94290232,201.82,201.81,1e-08]
[1753211519378,36.80088656,201.82,201.81,1e-08]
[1753211520503,31.64491031,201.82,201.81,1e-08]
[1753211520703,58.30088656,201.82,201.81,1e-08]
[1753211521403,58.44304813,201.82,201.81,1e-08]
[1753211521765,31.64491031,201.82,201.81,1e-08]
[1753211522001,47.5,201.82,201.81,1e-08]
[1753211522290,53.34597625,201.82,201.81,1e-08]
[1753211523305,58.30088656,201.82,201.81,1e-08]
[1753211523491,36.80088656,201.82,201.81,1e-08]
[1753211523691,26.0,201.82,201.81,1e-08]
[1753211523872,47.5,201.82,201.81,1e-08]
[1753211524268,52.45491031,201.82,201.81,1e-08]
[1753211524469,47.5,201.82,201.81,1e-08]
[1753211524682,21.5,201.83,201.81,1e-08]
[1753211524890,27.30597625,201.91,201.82,21.94066022]
[1753211525193,21.5,201.9,201.85,5.15597625]
[1753211525372,26.452947,201.9,201.85,5.15597625]
[1753211525567,31.60892325,201.9,201.85,0.7]
[1753211525770,57.60892325,201.9,201.85,0.7]
[1753211525987,52.452947,201.9,201.84,21.94066022]
[1753211526293,26.452947,201.9,201.86,0.7]
[1753211526595,0.06,201.88,201.86,0.7]
[1753211526797,21.5,201.87,201.86,0.7]
[1753211527795,21.5,201.87,201.86,5.85597625]
[1753211528472,0.06,201.88,201.87,16.78468397]
[1753211528668,0.06,201.88,201.87,22.64066022]
[1753211529484,0.06,201.88,201.87,27.59434328]
[1753211529867,0.06,201.88,201.87,0.7]
[1753211530065,0.06,201.88,201.86,16.78468397]
[1753211530296,0.06,201.88,201.86,17.48468397]
[1753211530893,0.06,201.88,201.86,22.64066022]
[1753211531481,0.06,201.88,201.85,16.78468397]
[1753211531802,0.06,201.88,201.85,17.48468397]
[1753211531977,0.06,201.88,201.85,16.78468397]
[1753211532177,0.06,201.88,201.86,0.7]
[1753211532593,0.06,201.88,201.84,16.78468397]
[1753211532895,5.15597625,201.87,201.82,17.48468397]
[1753211533610,4.95392846,201.86,201.82,0.7]
[1753211533773,26.65597625,201.85,201.81,1e-08]
[1753211533967,5.15597625,201.84,201.81,1e-08]
[1753211534403,5.84597625,201.84,201.81,1e-08]
[1753211535077,4.95466481,201.83,201.81,1e-08]
[1753211535889,21.5,201.85,201.81,5.15597626]
[1753211535890,26.0,201.85,201.81,5.15597626]
[1753211536108,21.48,201.84,201.82,0.7]
[1753211536496,21.48,201.84,201.81,5.15597626]
[1753211536673,21.48,201.84,201.81,16.78468398]
[1753211536868,21.48,201.84,201.81,17.48468398]
[1753211537080,31.59046765,201.84,201.81,1e-08]
[1753211537302,32.28046765,201.84,201.81,1e-08]
[1753211537597,5.15597625,201.83,201.81,1e-08]
[1753211537804,31.15597625,201.82,201.81,1e-08]
[1753211537972,31.86597625,201.82,201.81,1e-08]
[1753211538176,5.86597625,201.82,201.81,1e-08]
[1753211538999,36.82088656,201.82,201.81,1e-08]
[1753211539179,5.66491031,201.82,201.81,1e-08]
[1753211539388,13.91409445,201.82,201.81,1e-08]
[1753211543404,17.79612829,201.82,201.81,1e-08]
[1753211543578,13.91409445,201.82,201.81,1e-08]
[1753211544878,17.90221867,201.82,201.81,1e-08]
[1753211545179,5.66491031,201.82,201.81,1e-08]
[1753211545382,26.0,201.83,201.81,0.70000001]
[1753211545686,26.43491031,201.82,201.81,1e-08]
[1753211545898,52.43491031,201.82,201.81,1e-08]
[1753211546303,47.48,201.82,201.81,1e-08]
[1753211546608,52.43491031,201.82,201.81,1e-08]
[1753211548088,27.14491031,201.82,201.81,1e-08]
[1753211548604,4.95392846,201.86,201.81,8.94918415]
[1753211548788,21.48,201.85,201.82,8.94918414]
[1753211548980,21.48,201.85,201.83,0.7]
[1753211549297,21.48,201.85,201.83,8.94918414]
[1753211549501,21.48,201.85,201.84,8.94918414]
[1753211549687,21.48,201.85,201.81,25.03386812]
[1753211549895,4.95441934,201.84,201.81,16.78468398]
[1753211550208,4.95441934,201.84,201.81,1e-08]
[1753211550402,4.95441934,201.84,201.81,16.78468398]
[1753211550609,4.95441934,201.84,201.81,1e-08]
[1753211550995,4.95441934,201.84,201.81,16.78468398]
[1753211551311,4.95441934,201.84,201.82,0.7]
[1753211552189,4.95441934,201.84,201.81,25.03386812]
[1753211553406,26.43419405,201.85,201.82,8.24918414]
[1753211554011,26.43419405,201.85,201.81,8.24918415]
[1753211554509,34.68337819,201.85,201.81,1e-08]
[1753211554715,8.24918414,201.84,201.81,1e-08]
[1753211555198,8.24918414,201.83,201.81,1e-08]
[1753211555912,21.48,201.82,201.81,1e-08]
[1753211558014,52.43491031,201.82,201.81,1e-08]
[1753211563411,57.58954559,201.82,201.81,1e-08]
[1753211563715,31.58954559,201.82,201.81,1e-08]
[1753211563918,31.58954559,201.82,201.73,7.2829]
[1753211563919,26.0,201.79,201.73,7.2829]
[1753211564120,5.15463528,201.74,201.72,0.03]
[1753211564323,0.71,201.78,201.72,0.03]
[1753211564621,5.15463528,201.73,201.72,0.03]
[1753211564809,32.28175618,201.73,201.72,0.03]
[1753211565193,32.28175618,201.73,201.62,6.6071]
[1753211565194,26.0,201.7,201.62,6.6071]
[1753211565392,26.0,201.66,201.61,0.7]
[1753211565605,21.46,201.65,201.61,0.7]
[1753211565922,21.46,201.65,201.62,0.7]
[1753211566101,21.46,201.65,201.63,17.48468397]
[1753211566624,21.46,201.65,201.64,0.7]
[1753211566990,21.46,201.67,201.65,16.78468397]
[1753211567189,21.46,201.68,201.66,0.7]
[1753211567412,21.46,201.68,201.65,5.15463528]
[1753211567693,21.46,201.68,201.67,0.66]
[1753211567889,21.46,201.68,201.67,22.59931925]
[1753211568113,21.46,201.7,201.67,22.59931925]
[1753211568288,21.46,201.72,201.68,17.44468397]
[1753211568501,21.46,201.72,201.68,0.66]
[1753211568699,26.61463528,201.72,201.68,0.66]
[1753211569022,21.46,201.72,201.69,5.81463528]
[1753211569207,21.46,201.72,201.7,0.66]
[1753211569404,21.46,201.72,201.71,0.66]
[1753211569605,21.46,201.74,201.72,16.78468397]
[1753211569919,21.46,201.74,201.72,17.44468397]
[1753211570499,21.46,201.74,201.72,0.66]
[1753211571424,4.95610756,201.78,201.74,16.78468397]
[1753211571622,21.46,201.77,201.74,17.44468397]
[1753211572423,21.46,201.77,201.75,0.66]
[1753211572723,21.46,201.77,201.73,17.44468397]
[1753211572925,21.46,201.77,201.74,0.66]
[1753211573231,21.46,201.77,201.75,0.66]
[1753211573721,26.41629084,201.77,201.71,25.69930789]
[1753211574023,26.41629084,201.77,201.71,17.44468397]
[1753211574024,8.25462392,201.76,201.71,17.44468397]
[1753211574527,27.07629084,201.77,201.71,17.44468397]
[1753211574730,26.0,201.79,201.75,8.25462392]
[1753211574924,26.41564939,201.79,201.75,8.91462392]
[1753211575124,26.41564939,201.79,201.75,0.66]
[1753211575433,21.46,201.79,201.76,0.66]
[1753211575724,21.46,201.79,201.77,0.66]
[1753211575933,21.46,201.79,201.78,0.66]
[1753211577926,26.0,201.8,201.78,8.91462392]
[1753211578227,39.21002627,201.8,201.74,0.66]
[1753211578530,39.21002627,201.8,201.71,16.78468397]
[1753211578531,34.25462392,201.77,201.72,0.66]
[1753211578717,21.46,201.76,201.72,0.66]
[1753211578920,8.25462392,201.75,201.69,26.70590789]
[1753211579109,26.0,201.73,201.69,16.81468397]
[1753211579310,47.46,201.73,201.69,16.81468397]